fUST/lending_fUST_20250801
["ID","MTS","AMOUNT","RATE_DAILY","PERIOD"]
[376544698,1754014239035,-460.0,0.00022145,2]
[376544699,1754014239044,-460.0,0.00022145,2]
[376544700,1754014239053,-460.0,0.00022145,2]
[376544701,1754014239062,-460.0,0.00022145,2]
[376544702,1754014239071,-460.0,0.00022145,2]
[376544703,1754014239080,-460.0,0.00022145,2]
[376544704,1754014239089,-461.19,0.00022145,2]
[376544705,1754014239098,-460.0,0.00022145,2]
[376544706,1754014239107,-460.0,0.00022145,2]
[376544707,1754014239116,-486.7,0.00022145,2]
[376544708,1754014239125,-460.0,0.00022145,2]
[376544709,1754014239134,-471.0302583,0.00022145,2]
[376544710,1754014239143,-460.0,0.00022145,2]
[376544711,1754014239152,-460.0,0.00022145,2]
[376544712,1754014239161,-618.37,0.00022145,2]
[376544713,1754014239170,-460.0,0.00022145,2]
[376544714,1754014239179,-612.49,0.00022145,2]
[376544715,1754014239187,-581.18,0.00022145,2]
[376544716,1754014239197,-887.31,0.00022145,2]
[376544717,1754014239208,-460.0,0.00022145,2]
[376544718,1754014239220,-460.0,0.00022145,2]
[376544719,1754014239229,-460.0,0.00022145,2]
[376544720,1754014239239,-547.26,0.00022145,2]
[376544721,1754014239249,-460.0,0.00022145,2]
[376544722,1754014239260,-460.0,0.00022145,2]
[376544723,1754014239270,-633.58,0.00022145,2]
[376544725,1754014239279,-918.59,0.00022145,2]
[376544727,1754014239291,-570.29,0.00022145,2]
[376544729,1754014239304,-460.0,0.00022145,2]
[376544731,1754014239320,-735.82,0.00022145,2]
[376544732,1754014239332,-460.0,0.00022145,2]
[376544733,1754014239345,-498.93,0.00022145,2]
[376544734,1754014239359,-500.59,0.00022145,2]
[376544735,1754014239373,-460.0,0.00022145,2]
[376544736,1754014239387,-500.0,0.00022147,2]
[376544737,1754014239399,-500.0,0.00022147,2]
[376544738,1754014239411,-460.0,0.00022155,2]
[376544739,1754014239422,-632.03,0.00022155,2]
[376544740,1754014239444,-956.11,0.00022155,2]
[376544742,1754014239458,-1577.97,0.00022155,2]
[376544745,1754014239470,-460.0,0.00022155,2]
[376544746,1754014239483,-561.22888339,0.00022155,2]
[376544747,1754014239498,-460.0,0.00022155,2]
[376544748,1754014239513,-555.17,0.00022155,2]
[376544749,1754014239528,-1515.29,0.00022155,2]
[376544750,1754014239544,-461.58750805,0.00022158,2]
[376544751,1754014239562,-458.3486478,0.00022158,2]
[376544752,1754014239578,-460.0,0.00022158,2]
[376544753,1754014239593,-837.34,0.00022158,2]
[376544754,1754014239608,-1225.0,0.00022158,2]
[376544755,1754014239625,-500.0,0.00022165,2]
[376544756,1754014239640,-151.34616234,0.00022173,2]
[376544759,1754014239657,-183.84675522,0.00022173,2]
[376544761,1754014239671,-501.43251044,0.00022173,2]
[376544763,1754014239683,-500.0,0.00022187,2]
[376544765,1754014239695,-460.0,0.00022188,2]
[376544768,1754014239714,-460.0,0.00022188,2]
[376544770,1754014239730,-1970.03,0.00022188,2]
[376544772,1754014239742,-460.0,0.00022188,2]
[376544775,1754014239757,-460.0,0.00022188,2]
[376544777,1754014239769,-460.0,0.00022188,2]
[376544779,1754014239782,-8399.82931109,0.000222,2]
[376544782,1754014239798,-1100.81242992,0.000222,2]
[376544787,1754014239833,-500.0,0.00022145,2]
[376544789,1754014239846,-6984.69930035,0.000222,2]
[376544791,1754014239861,-898.2322842,0.000222,2]
[376544808,1754014240018,-829.28017256,0.000222,2]
[376544811,1754014240032,-1427.7127881,0.000222,2]
[376544814,1754014240051,-274.81421384,0.000222,2]
[376544816,1754014240064,-615.08863972,0.000222,2]
[376544827,1754014240356,-403.67280999,0.000222,2]
[376544830,1754014240370,-9209.35580587,0.000222,2]
[376544832,1754014240386,-1146.59039788,0.000222,2]
[376545062,1754014242937,-460.0,0.00020933,2]
[376545063,1754014242946,-389.80179425,0.00021049,2]
[376545064,1754014242990,-70.19820575,0.00021049,2]
[376545065,1754014242999,-460.0,0.00021207,2]
[376545066,1754014243010,-500.0,0.00021917,2]
[376545068,1754014243019,-500.0,0.00021917,2]
[376545069,1754014243028,-500.0,0.00021917,2]
[376545071,1754014243037,-500.0,0.00021917,2]
[376545073,1754014243047,-1204.55,0.00021999,2]
[376545075,1754014243056,-500.0,0.00022145,2]
[376545077,1754014243066,-3409.74184648,0.000222,2]
[376545080,1754014243076,-462.04924198,0.00022272,2]
[376545082,1754014243085,-460.0,0.00022272,2]
[376545083,1754014243094,-460.0,0.00022272,2]
[376545084,1754014243104,-777.4,0.00022272,2]
[376545086,1754014243113,-460.0,0.00022272,2]
[376545088,1754014243122,-465.4122643,0.00022272,2]
[376545090,1754014243132,-460.0,0.00022272,2]
[376545092,1754014243141,-460.0,0.00022272,2]
[376545094,1754014243150,-460.0,0.00022272,2]
[376545096,1754014243159,-460.0,0.00022272,2]
[376545098,1754014243168,-460.0,0.00022272,2]
[376545100,1754014243178,-473.37554525,0.00022272,2]
[376545102,1754014243186,-460.0,0.00022272,2]
[376545104,1754014243196,-460.0,0.00022272,2]
[376545106,1754014243205,-460.0,0.00022272,2]
[376545108,1754014243216,-460.0,0.00022272,2]
[376545110,1754014243227,-460.0,0.00022272,2]
[376545112,1754014243237,-460.0,0.00022272,2]
[376545114,1754014243246,-460.0,0.00022272,2]
[376545116,1754014243255,-460.0,0.00022272,2]
[376545118,1754014243265,-460.0,0.00022272,2]
[376545120,1754014243274,-1030.14,0.00022272,2]
[376545122,1754014243284,-460.0,0.00022272,2]
[376545124,1754014243294,-460.0,0.00022272,2]
[376545126,1754014243303,-460.0,0.00022272,2]
[376545128,1754014243312,-460.0,0.00022272,2]
[376545130,1754014243321,-858.39,0.00022272,2]
[376545132,1754014243330,-460.0,0.00022272,2]
[376545133,1754014243339,-460.0,0.00022272,2]
[376545134,1754014243348,-460.0,0.00022272,2]
[376545135,1754014243358,-460.0,0.00022272,2]
[376545136,1754014243367,-574.44,0.00022272,2]
[376545137,1754014243376,-460.0,0.00022272,2]
[376545138,1754014243385,-465.62655635,0.00022272,2]
[376545139,1754014243394,-500.0,0.00022272,2]
[376545140,1754014243404,-1517.58,0.00022273,2]
[376545141,1754014243413,-1204.55,0.00022273,2]
[376545142,1754014243422,-460.0,0.00022303,2]
[376545143,1754014243431,-524.04,0.00022303,2]
[376545144,1754014243440,-1788.16,0.00022303,2]
[376545145,1754014243449,-460.0,0.00022377,2]
[376545146,1754014243458,-4443.87,0.00022377,2]
[376545147,1754014243467,-424.68,0.00022378,10]
[376545148,1754014243476,-460.0,0.00022381,2]
[376545149,1754014243485,-2629.49,0.00022388,2]
[376545151,1754014243494,-578.56,0.00022388,2]
[376545152,1754014243503,-2282.47,0.00022388,2]
[376545154,1754014243513,-460.0,0.00022388,2]
[376545156,1754014243522,-2368.28,0.00022388,2]
[376545158,1754014243531,-322.09592722,0.00022388,2]
[376545160,1754014243540,-609.28,0.00022388,2]
[376545162,1754014243549,-460.0,0.00022388,2]
[376545163,1754014243561,-517.59,0.00022388,2]
[376545164,1754014243570,-691.51,0.00022388,2]
[376545165,1754014243579,-1612.93,0.00022388,2]
[376545166,1754014243588,-460.0,0.00022388,2]
[376545167,1754014243597,-2176.49,0.000224,7]
[376545168,1754014243606,-460.0,0.00022402,2]
[376545169,1754014243616,-460.0,0.00022402,2]
[376545170,1754014243625,-460.0,0.00022402,2]
[376545171,1754014243634,-460.0,0.00022402,2]
[376545172,1754014243643,-460.0,0.00022402,2]
[376545173,1754014243652,-460.0,0.00022402,2]
[376545174,1754014243662,-460.0,0.00022402,2]
[376545175,1754014243671,-460.0,0.00022402,2]
[376545176,1754014243681,-460.0,0.00022402,2]
[376545177,1754014243690,-460.0,0.00022402,2]
[376545178,1754014243699,-460.0,0.00022402,2]
[376545179,1754014243709,-221.28014207,0.00022402,2]
[376545180,1754014243719,-172.115948,0.00022402,2]
[376545181,1754014243728,-460.0,0.00022402,2]
[376545182,1754014243737,-460.0,0.00022402,2]
[376545183,1754014243746,-460.0,0.00022402,2]
[376545184,1754014243755,-464.98483122,0.00022402,2]
[376545185,1754014243765,-460.0,0.00022402,2]
[376545186,1754014243774,-468.10135795,0.00022402,2]
[376545187,1754014243783,-460.0,0.00022402,2]
[376545188,1754014243792,-555.56389876,0.00022402,2]
[376545189,1754014243801,-460.0,0.00022402,2]
[376545190,1754014243811,-500.0,0.0002241,2]
[376545191,1754014243820,-500.0,0.00022411,2]
[376545192,1754014243830,-460.0,0.00022412,2]
[376545193,1754014243839,-461.82164261,0.00022412,2]
[376545194,1754014243848,-460.0,0.00022412,2]
[376545195,1754014243857,-4936.36,0.00022412,2]
[376545196,1754014243866,-500.0,0.00022419,2]
[376545197,1754014243876,-460.0,0.00022419,2]
[376545198,1754014243885,-460.0,0.00022419,2]
[376545199,1754014243894,-460.0,0.00022419,2]
[376545200,1754014243903,-460.0,0.00022419,2]
[376545201,1754014243912,-460.0,0.00022419,2]
[376545202,1754014243921,-460.0,0.00022419,2]
[376545203,1754014243932,-461.19,0.00022419,2]
[376545204,1754014243941,-260.11181223,0.00022419,2]
[376545205,1754014243950,-486.7,0.00022419,2]
[376545206,1754014243960,-460.0,0.00022419,2]
[376545207,1754014243969,-460.0,0.00022419,2]
[376545208,1754014243978,-460.0,0.00022419,2]
[376545209,1754014243988,-460.0,0.00022419,2]
[376545210,1754014243997,-618.37,0.00022419,2]
[376545211,1754014244006,-460.0,0.00022419,2]
[376545212,1754014244015,-581.18,0.00022419,2]
[376545213,1754014244024,-887.31,0.00022419,2]
[376545214,1754014244035,-460.0,0.00022419,2]
[376545215,1754014244044,-460.0,0.00022419,2]
[376545216,1754014244054,-460.0,0.00022419,2]
[376545217,1754014244065,-547.26,0.00022419,2]
[376545218,1754014244074,-460.0,0.00022419,2]
[376545219,1754014244083,-460.0,0.00022419,2]
[376545220,1754014244092,-633.58,0.00022419,2]
[376545221,1754014244102,-918.59,0.00022419,2]
[376545222,1754014244111,-570.29,0.00022419,2]
[376545223,1754014244122,-460.0,0.00022419,2]
[376545224,1754014244132,-735.82,0.00022419,2]
[376545225,1754014244141,-481.6344825,0.00022419,2]
[376545226,1754014244150,-498.93,0.00022419,2]
[376545227,1754014244159,-500.59,0.00022419,2]
[376545228,1754014244169,-460.0,0.00022419,2]
[376545229,1754014244178,-500.0,0.00022419,2]
[376545230,1754014244187,-500.0,0.00022421,2]
[376545231,1754014244196,-460.0,0.00022429,2]
[376545232,1754014244205,-632.03,0.00022429,2]
[376545233,1754014244214,-956.11,0.00022429,2]
[376545234,1754014244226,-1577.97,0.00022429,2]
[376545235,1754014244235,-460.0,0.00022429,2]
[376545236,1754014244245,-460.0,0.00022429,2]
[376545237,1754014244256,-555.17,0.00022429,2]
[376545238,1754014244266,-1515.29,0.00022429,2]
[376545239,1754014244275,-453.01731498,0.00022431,2]
[376545240,1754014244285,-837.34,0.00022432,2]
[376545241,1754014244295,-1225.0,0.00022432,2]
[376545242,1754014244305,-460.0,0.00022462,2]
[376545243,1754014244314,-1970.03,0.00022462,2]
[376545244,1754014244323,-460.0,0.00022462,2]
[376545245,1754014244333,-460.0,0.00022462,2]
[376545246,1754014244342,-500.0,0.00022468,2]
[376545247,1754014244351,-1500.0,0.00022468,2]
[376545248,1754014244361,-500.0,0.00022468,2]
[376545249,1754014244370,-501.05870828,0.00022473,2]
[376545250,1754014244380,-577.46825789,0.00022473,2]
[376545251,1754014244390,-306.59254289,0.00022473,2]
[376545252,1754014244399,-556.02046843,0.00022546,2]
[376545253,1754014244408,-460.0,0.00022546,2]
[376545254,1754014244417,-777.4,0.00022546,2]
[376545255,1754014244427,-460.0,0.00022546,2]
[376545256,1754014244436,-460.0,0.00022546,2]
[376545257,1754014244445,-460.0,0.00022546,2]
[376545258,1754014244454,-460.0,0.00022546,2]
[376545259,1754014244464,-460.0,0.00022546,2]
[376545260,1754014244473,-460.0,0.00022546,2]
[376545261,1754014244482,-460.0,0.00022546,2]
[376545262,1754014244491,-460.0,0.00022546,2]
[376545263,1754014244500,-460.0,0.00022546,2]
[376545264,1754014244510,-460.0,0.00022546,2]
[376545265,1754014244519,-460.0,0.00022546,2]
[376545266,1754014244529,-460.0,0.00022546,2]
[376545267,1754014244538,-460.0,0.00022546,2]
[376545268,1754014244548,-468.09214521,0.00022546,2]
[376545269,1754014244557,-464.52620459,0.00022546,2]
[376545270,1754014244566,-1030.14,0.00022546,2]
[376545271,1754014244576,-355.84359175,0.00022546,2]
[376545272,1754014244585,-169.47898925,0.00022546,2]
[376545273,1754014244594,-472.73431163,0.00022546,2]
[376545274,1754014244604,-460.0,0.00022546,2]
[376545275,1754014244613,-858.39,0.00022546,2]
[376545276,1754014244623,-460.0,0.00022546,2]
[376545277,1754014244632,-221.15402227,0.00022546,2]
[376545278,1754014244642,-460.0,0.00022546,2]
[376545279,1754014244651,-574.44,0.00022546,2]
[376545280,1754014244660,-460.0,0.00022546,2]
[376545281,1754014244670,-1517.58,0.00022547,2]
[376545282,1754014244679,-1204.55,0.00022547,2]
[376545283,1754014244689,-460.0,0.00022576,2]
[376545284,1754014244699,-524.04,0.00022576,2]
[376545285,1754014244709,-1788.16,0.00022576,2]
[376545286,1754014244718,-272.5,0.00022586,4]
[376545287,1754014244728,-311.64222351,0.00022623,2]
[376545288,1754014244738,-460.0,0.00022651,2]
[376545289,1754014244747,-4443.87,0.00022651,2]
[376545290,1754014244757,-460.0,0.00022655,2]
[376545291,1754014244767,-2629.49,0.00022662,2]
[376545292,1754014244777,-578.56,0.00022662,2]
[376545293,1754014244787,-2282.47,0.00022662,2]
[376545294,1754014244796,-460.0,0.00022662,2]
[376545295,1754014244806,-2368.28,0.00022662,2]
[376545296,1754014244815,-609.28,0.00022662,2]
[376545297,1754014244825,-460.0,0.00022662,2]
[376545298,1754014244834,-517.59,0.00022662,2]
[376545299,1754014244843,-691.51,0.00022662,2]
[376545300,1754014244853,-1612.93,0.00022662,2]
[376545301,1754014244862,-460.0,0.00022662,2]
[376545302,1754014244871,-460.0,0.00022676,2]
[376545303,1754014244881,-460.0,0.00022676,2]
[376545304,1754014244890,-464.64670381,0.00022676,2]
[376545305,1754014244899,-464.66049171,0.00022676,2]
[376545306,1754014244909,-460.0,0.00022676,2]
[376545307,1754014244918,-170.37780438,0.00022676,2]
[376545308,1754014244927,-460.0,0.00022676,2]
[376545309,1754014244937,-306.01891526,0.00022676,2]
[376545310,1754014244947,-460.0,0.00022676,2]
[376545311,1754014244957,-471.2471587,0.00022676,2]
[376545312,1754014244966,-465.68542733,0.00022676,2]
[376545313,1754014244975,-532.34138268,0.00022676,2]
[376545314,1754014244985,-460.0,0.00022676,2]
[376545315,1754014244995,-460.0,0.00022676,2]
[376545316,1754014245005,-460.0,0.00022676,2]
[376545317,1754014245015,-460.0,0.00022676,2]
[376545318,1754014245024,-460.0,0.00022686,2]
[376545319,1754014245034,-470.06972144,0.00022686,2]
[376545320,1754014245044,-4936.36,0.00022686,2]
[376545321,1754014245053,-500.0,0.00022693,2]
[376545322,1754014245062,-460.0,0.00022693,2]
[376545323,1754014245072,-460.0,0.00022693,2]
[376545324,1754014245081,-460.0,0.00022693,2]
[376545325,1754014245090,-460.0,0.00022693,2]
[376545326,1754014245099,-460.0,0.00022693,2]
[376545327,1754014245108,-460.0,0.00022693,2]
[376545328,1754014245118,-461.19,0.00022693,2]
[376545329,1754014245128,-486.7,0.00022693,2]
[376545330,1754014245137,-460.0,0.00022693,2]
[376545331,1754014245147,-460.0,0.00022693,2]
[376545332,1754014245156,-460.0,0.00022693,2]
[376545333,1754014245166,-460.0,0.00022693,2]
[376545334,1754014245175,-618.37,0.00022693,2]
[376545336,1754014245184,-460.0,0.00022693,2]
[376545338,1754014245194,-581.18,0.00022693,2]
[376545339,1754014245203,-887.31,0.00022693,2]
[376545341,1754014245214,-575.67878301,0.00022693,2]
[376545342,1754014245226,-460.0,0.00022693,2]
[376545344,1754014245236,-460.0,0.00022693,2]
[376545345,1754014245244,-547.26,0.00022693,2]
[376545346,1754014245254,-460.0,0.00022693,2]
[376545347,1754014245264,-633.58,0.00022693,2]
[376545348,1754014245273,-918.59,0.00022693,2]
[376545349,1754014245282,-570.29,0.00022693,2]
[376545350,1754014245292,-460.0,0.00022693,2]
[376545351,1754014245301,-735.82,0.00022693,2]
[376545352,1754014245312,-498.93,0.00022693,2]
[376545353,1754014245321,-500.59,0.00022693,2]
[376545354,1754014245330,-460.0,0.00022693,2]
[376545355,1754014245339,-500.0,0.00022693,2]
[376545357,1754014245349,-7414.42,0.000227,7]
[376545358,1754014245358,-312.16666667,0.000227,7]
[376545359,1754014245369,-484.53,0.00022702,2]
[376545360,1754014245380,-460.0,0.00022703,2]
[376545361,1754014245391,-632.03,0.00022703,2]
[376545363,1754014245401,-956.11,0.00022703,2]
[376545365,1754014245411,-1577.97,0.00022703,2]
[376545367,1754014245420,-460.0,0.00022703,2]
[376545369,1754014245430,-460.0,0.00022703,2]
[376545371,1754014245440,-555.17,0.00022703,2]
[376545373,1754014245451,-1515.29,0.00022703,2]
[376545375,1754014245465,-837.34,0.00022706,2]
[376545377,1754014245475,-1225.0,0.00022706,2]
[376545379,1754014245485,-460.0,0.00022736,2]
[376545381,1754014245494,-1970.03,0.00022736,2]
[376545383,1754014245504,-460.0,0.00022736,2]
[376545385,1754014245513,-460.0,0.00022736,2]
[376545387,1754014245522,-476.30511355,0.0002282,2]
[376545389,1754014245532,-777.4,0.0002282,2]
[376545391,1754014245542,-460.0,0.0002282,2]
[376545393,1754014245551,-460.0,0.0002282,2]
[376545395,1754014245560,-460.0,0.0002282,2]
[376545397,1754014245569,-460.0,0.0002282,2]
[376545399,1754014245579,-460.0,0.0002282,2]
[376545401,1754014245588,-465.48110574,0.0002282,2]
[376545403,1754014245597,-460.0,0.0002282,2]
[376545405,1754014245606,-460.0,0.0002282,2]
[376545407,1754014245617,-492.0829595,0.0002282,2]
[376545409,1754014245633,-467.45418631,0.0002282,2]
[376545411,1754014245650,-460.0,0.0002282,2]
[376545413,1754014245659,-460.0,0.0002282,2]
[376545415,1754014245668,-460.0,0.0002282,2]
[376545417,1754014245677,-1030.14,0.0002282,2]
[376545419,1754014245686,-460.0,0.0002282,2]
[376545421,1754014245695,-858.39,0.0002282,2]
[376545423,1754014245707,-152.28465856,0.0002282,2]
[376545425,1754014245716,-460.0,0.0002282,2]
[376545427,1754014245726,-574.44,0.0002282,2]
[376545429,1754014245735,-460.0,0.0002282,2]
[376545431,1754014245744,-1517.58,0.00022821,2]
[376545433,1754014245754,-160.0,0.00022839,2]
[376545435,1754014245764,-460.0,0.0002285,2]
[376545437,1754014245773,-524.04,0.0002285,2]
[376545439,1754014245783,-1788.16,0.0002285,2]
[376545441,1754014245793,-420.0,0.00022861,2]
[376545443,1754014245811,-460.0,0.00022925,2]
[376545445,1754014245823,-4443.87,0.00022925,2]
[376545447,1754014245833,-460.0,0.00022929,2]
[376545449,1754014245843,-2629.49,0.00022936,2]
[376545461,1754014245961,-578.56,0.00022936,2]
[376545464,1754014245974,-2282.47,0.00022936,2]
[376545465,1754014245983,-460.0,0.00022936,2]
[376545467,1754014245993,-2368.28,0.00022936,2]
[376545470,1754014246003,-609.28,0.00022936,2]
[376545472,1754014246012,-460.0,0.00022936,2]
[376545474,1754014246022,-517.59,0.00022936,2]
[376545476,1754014246031,-691.51,0.00022936,2]
[376545478,1754014246041,-1612.93,0.00022936,2]
[376545480,1754014246051,-460.0,0.00022936,2]
[376545482,1754014246061,-460.0,0.0002295,2]
[376545484,1754014246071,-460.0,0.0002295,2]
[376545486,1754014246080,-466.06668708,0.0002295,2]
[376545488,1754014246090,-460.0,0.0002295,2]
[376545490,1754014246099,-460.0,0.0002295,2]
[376545492,1754014246109,-460.0,0.0002295,2]
[376545494,1754014246118,-460.0,0.0002295,2]
[376545496,1754014246127,-460.0,0.0002295,2]
[376545498,1754014246137,-460.0,0.0002295,2]
[376545500,1754014246146,-460.0,0.0002296,2]
[376545502,1754014246155,-4936.36,0.0002296,2]
[376545505,1754014246169,-500.0,0.00022967,2]
[376545507,1754014246178,-460.0,0.00022967,2]
[376545509,1754014246187,-460.0,0.00022967,2]
[376545511,1754014246197,-401.605876,0.00022967,2]
[376545536,1754014246433,-504.05,0.00021018,2]
[376545538,1754014246442,-6.2007475,0.00021292,2]
[376545541,1754014246457,-497.8492525,0.00021292,2]
[376545543,1754014246466,-504.05,0.00021566,2]
[376545544,1754014246475,-504.05,0.0002184,2]
[376545545,1754014246485,-504.05,0.00022114,2]
[376545546,1754014246495,-504.05,0.00022388,2]
[376545547,1754014246504,-504.05,0.00022662,2]
[376545549,1754014246513,-1204.55,0.00022821,2]
[376545551,1754014246522,-504.05,0.00022936,2]
[376545553,1754014246531,-58.394124,0.00022967,2]
[376545555,1754014246540,-460.0,0.00022967,2]
[376545557,1754014246550,-460.0,0.00022967,2]
[376545559,1754014246559,-460.0,0.00022967,2]
[376545561,1754014246569,-461.19,0.00022967,2]
[376545562,1754014246579,-486.7,0.00022967,2]
[376545563,1754014246588,-203.40609319,0.00022967,2]
[376545564,1754014246604,-256.59390681,0.00022967,2]
[376545565,1754014246614,-460.0,0.00022967,2]
[376545566,1754014246623,-460.0,0.00022967,2]
[376545567,1754014246633,-460.0,0.00022967,2]
[376545568,1754014246642,-618.37,0.00022967,2]
[376545569,1754014246651,-460.0,0.00022967,2]
[376545570,1754014246661,-581.18,0.00022967,2]
[376545572,1754014246670,-887.31,0.00022967,2]
[376545574,1754014246680,-460.0,0.00022967,2]
[376545576,1754014246690,-460.0,0.00022967,2]
[376545578,1754014246699,-547.26,0.00022967,2]
[376545580,1754014246712,-460.0,0.00022967,2]
[376545582,1754014246721,-633.58,0.00022967,2]
[376545584,1754014246730,-918.59,0.00022967,2]
[376545586,1754014246740,-570.29,0.00022967,2]
[376545588,1754014246751,-460.0,0.00022967,2]
[376545590,1754014246761,-735.82,0.00022967,2]
[376545592,1754014246770,-498.93,0.00022967,2]
[376545594,1754014246780,-500.59,0.00022967,2]
[376545597,1754014246790,-460.0,0.00022967,2]
[376545599,1754014246799,-500.0,0.00022967,2]
[376545601,1754014246809,-369.48609319,0.00022977,2]
[376545603,1754014246821,-90.51390681,0.00022977,2]
[376545605,1754014246830,-632.03,0.00022977,2]
[376545607,1754014246839,-159.16478839,0.00022977,2]
[376545621,1754014314837,156.20409802,0.000274,120]
[376545632,1754015033752,269.203835,0.00013699,2]
[376545637,1754015230091,-383.35868759,0.000189,2]
[376545638,1754015230113,-2426.10337362,0.00019173,2]
[376545639,1754015230134,-1000.0,0.00019367,2]
[376545640,1754015230155,-4003.0,0.000197,2]
[376545641,1754015230174,-170.697694,0.00019746,2]
[376545642,1754015230193,-512.3642752,0.00019839,2]
[376545643,1754015230214,-1200.0,0.00019989,2]
[376545644,1754015230234,-300.0,0.00019989,2]
[376545645,1754015230255,-1200.0,0.0001999,2]
[376545646,1754015230275,-300.0,0.00019991,2]
[376545647,1754015230297,-300.0,0.00019991,2]
[376545648,1754015230318,-300.0,0.00019991,2]
[376545649,1754015230338,-300.0,0.00019991,2]
[376545650,1754015230357,-474.71773811,0.00019992,2]
[376545651,1754015230378,-4145.0,0.00019992,2]
[376545652,1754015230398,-160.0,0.0002,3]
[376545653,1754015230419,-160.0,0.0002,3]
[376545654,1754015230440,-269.203835,0.00020187,2]
[376545655,1754015230463,-200.0,0.00020391,15]
[376545656,1754015230488,-200.0,0.00020391,15]
[376545657,1754015230516,-200.0,0.00020391,15]
[376545658,1754015230539,-200.0,0.00020391,15]
[376545659,1754015230563,-200.0,0.00020391,15]
[376545660,1754015230585,-357.28362687,0.00020532,2]
[376545661,1754015230606,-176.43405359,0.00020833,2]
[376545662,1754015230627,-460.0,0.00020931,2]
[376545663,1754015230648,-460.0,0.00020931,2]
[376545664,1754015230670,-1324.85,0.00020931,2]
[376545665,1754015230692,-1888.87,0.00020931,2]
[376545666,1754015230714,-460.0,0.00020931,2]
[376545667,1754015230733,-460.0,0.00020932,2]
[376545668,1754015230755,-460.0,0.00020932,2]
[376545669,1754015230776,-460.81401347,0.00020932,2]
[376545670,1754015230797,-455.25531942,0.00020932,2]
[376545671,1754015230817,-460.0,0.00020932,2]
[376545672,1754015230838,-412.15874632,0.00020932,2]
[376545673,1754015230858,-466.4009683,0.00020932,2]
[376545674,1754015230879,-460.0,0.00020932,2]
[376545675,1754015230900,-460.0,0.00020932,2]
[376545676,1754015230919,-438.6319843,0.00020932,2]
[376545677,1754015230940,-374.47339996,0.00020932,2]
[376545678,1754015251091,-4433.30794082,0.00020723,2]
[376545679,1754015251114,-302.86436162,0.00020931,2]
[376545685,1754015359115,-2760.5806902,0.00019981,2]
[376545686,1754015359138,-160.0,0.0002,3]
[376545687,1754015359173,-160.0,0.0002,3]
[376545688,1754015359196,-300.0,0.00020929,2]
[376545689,1754015359218,-233.81729458,0.0002093,2]
[376545690,1754015359241,-460.0,0.0002093,2]
[376545691,1754015359262,-460.78005074,0.0002093,2]
[376545692,1754015359285,-460.0,0.0002093,2]
[376545693,1754015359306,-463.19046603,0.0002093,2]
[376545694,1754015359329,-1269.65,0.0002093,2]
[376545695,1754015359352,-157.13563838,0.00020931,2]
[376545696,1754015359377,-1582.61,0.00020931,2]
[376545697,1754015359399,-460.0,0.00020931,2]
[376545698,1754015359421,-460.0,0.00020931,2]